fUST/lending_fUST_20250717
["ID","MTS","AMOUNT","RATE_DAILY","PERIOD"]
[372651090,1752733857894,-460.0,0.00019503,2]
[372651091,1752733857904,-460.0,0.00019503,2]
[372651092,1752733857915,-460.0,0.00019503,2]
[372651093,1752733857924,-631.04,0.00019503,2]
[372651094,1752733857933,-460.0,0.00019503,2]
[372651095,1752733857943,-460.0,0.00019503,2]
[372651096,1752733857952,-1599.14,0.00019503,2]
[372651097,1752733857962,-460.0,0.00019503,2]
[372651098,1752733857971,-460.0,0.00019503,2]
[372651099,1752733857981,-613.34,0.00019503,2]
[372651100,1752733857990,-619.55,0.00019503,2]
[372651101,1752733858001,-1158.0,0.00019503,2]
[372651102,1752733858010,-460.0,0.00019503,2]
[372651103,1752733858020,-460.0,0.00019503,2]
[372651104,1752733858029,-693.25,0.00019503,2]
[372651105,1752733858039,-460.0,0.00019503,2]
[372651106,1752733858049,-460.0,0.00019503,2]
[372651107,1752733858059,-1194.0,0.00019505,2]
[372651108,1752733858070,-245.0,0.00019505,2]
[372651109,1752733858080,-1100.0,0.00019505,2]
[372651110,1752733858090,-500.0,0.00019505,2]
[372651111,1752733858100,-460.0,0.00019505,2]
[372651112,1752733858114,-460.0,0.00019505,2]
[372651113,1752733858134,-460.0,0.00019505,2]
[372651114,1752733858144,-460.0,0.00019505,2]
[372651115,1752733858154,-460.0,0.00019505,2]
[372651116,1752733858163,-426.16,0.00019505,2]
[372651117,1752733858173,-460.0,0.00019505,2]
[372651118,1752733858182,-460.0,0.00019505,2]
[372651119,1752733858192,-847.53,0.00019505,2]
[372651120,1752733858202,-692.39,0.00019505,2]
[372651121,1752733858211,-460.0,0.00019505,2]
[372651122,1752733858221,-460.0,0.00019505,2]
[372651123,1752733858230,-546.11,0.00019505,2]
[372651124,1752733858240,-460.0,0.00019505,2]
[372651125,1752733858249,-3583.74,0.00019505,2]
[372651126,1752733858259,-460.0,0.00019505,2]
[372651127,1752733858268,-431.74,0.00019506,2]
[372651128,1752733858278,-460.0,0.00019506,2]
[372651129,1752733858287,-151.0,0.00019508,2]
[372651130,1752733858298,-151.0,0.00019508,2]
[372651131,1752733858308,-151.0,0.00019508,2]
[372651132,1752733858319,-151.0,0.00019508,2]
[372651133,1752733858329,-330.792834,0.00019509,2]
[372651134,1752733858339,-330.792833,0.00019509,2]
[372651135,1752733858349,-151.0,0.0001951,2]
[372651136,1752733858359,-151.0,0.00019511,2]
[372651137,1752733858370,-151.0,0.00019511,2]
[372651138,1752733858380,-168.0,0.00019519,2]
[372651139,1752733858389,-258.842857,0.00019527,2]
[372651140,1752733858399,-166.465663,0.00019527,2]
[372651141,1752733858409,-166.465663,0.00019527,2]
[372651142,1752733858419,-177.0799212,0.00019565,2]
[372651143,1752733858428,-306.0,0.00019565,2]
[372651144,1752733858438,-159.7314836,0.00019565,2]
[372651145,1752733858448,-168.0,0.00019576,2]
[372651146,1752733858457,-168.0,0.00019581,2]
[372651147,1752733858468,-151.0,0.00019598,2]
[372651148,1752733858477,-151.0,0.00019598,2]
[372651149,1752733858487,-153.311633,0.000196,2]
[372651150,1752733858568,-151.0,0.000196,2]
[372651151,1752733858578,-151.0,0.000196,2]
[372651153,1752733858589,-151.0,0.000196,2]
[372651154,1752733858598,-168.0,0.00019605,2]
[372651155,1752733858608,-168.0,0.00019616,2]
[372651157,1752733858618,-1500.0,0.00019624,2]
[372651158,1752733858627,-179.083867,0.00019641,2]
[372651159,1752733858637,-179.083867,0.00019641,2]
[372651160,1752733858647,-151.0,0.00019641,2]
[372651161,1752733858657,-303.00000303,0.00019656,2]
[372651162,1752733858667,-1680.0,0.00019673,2]
[372651163,1752733858676,-420.0,0.00019673,2]
[372651164,1752733858686,-230.0,0.00019673,2]
[372651165,1752733858695,-420.0,0.00019673,2]
[372651166,1752733858705,-460.0,0.00019676,2]
[372651167,1752733858714,-460.0,0.00019676,2]
[372651168,1752733858724,-460.0,0.00019676,2]
[372651169,1752733858735,-460.0,0.00019676,2]
[372651170,1752733858746,-486.72,0.00019676,2]
[372651171,1752733858755,-460.0,0.00019676,2]
[372651172,1752733858764,-530.92,0.00019676,2]
[372651173,1752733858774,-587.58,0.00019676,2]
[372651174,1752733858784,-460.0,0.00019676,2]
[372651175,1752733858794,-598.69,0.00019676,2]
[372651176,1752733858805,-609.94764585,0.00019676,2]
[372651177,1752733858815,-672.11,0.00019676,2]
[372651178,1752733858828,-460.0,0.00019676,2]
[372651179,1752733858837,-460.0,0.00019676,2]
[372651180,1752733858847,-468.2824904,0.00019676,2]
[372651181,1752733858858,-460.0,0.00019676,2]
[372651182,1752733858868,-460.0,0.00019676,2]
[372651183,1752733858878,-5674.72,0.00019676,2]
[372651184,1752733858888,-460.0,0.00019676,2]
[372651185,1752733858899,-460.0,0.00019676,2]
[372651186,1752733858909,-460.0,0.00019676,2]
[372651187,1752733858918,-460.0,0.00019676,2]
[372651188,1752733858928,-460.0,0.00019676,2]
[372651189,1752733858937,-460.0,0.00019676,2]
[372651190,1752733858946,-460.0,0.00019676,2]
[372651191,1752733858957,-2305.95,0.00019676,2]
[372651192,1752733858967,-460.0,0.00019676,2]
[372651193,1752733858978,-4193.99,0.00019676,2]
[372651194,1752733858988,-710.08,0.00019676,2]
[372651195,1752733858999,-460.0,0.00019676,2]
[372651196,1752733859008,-460.0,0.00019676,2]
[372651197,1752733859017,-460.0,0.00019676,2]
[372651198,1752733859027,-460.0,0.00019676,2]
[372651199,1752733859036,-460.0,0.00019676,2]
[372651200,1752733859046,-1286.69,0.00019676,2]
[372651201,1752733859056,-163.92056786,0.00019676,2]
[372651202,1752733859069,-2289.29,0.00019676,2]
[372651203,1752733859079,-460.0,0.00019676,2]
[372651204,1752733859089,-460.0,0.00019678,2]
[372651205,1752733859099,-424.07649,0.00019678,2]
[372651206,1752733859109,-424.07649,0.00019678,2]
[372651207,1752733859118,-151.0,0.00019678,2]
[372651208,1752733859128,-298.687031,0.00019678,2]
[372651209,1752733859138,-298.687031,0.00019678,2]
[372651210,1752733859147,-151.0,0.00019678,2]
[372651211,1752733859157,-151.0,0.00019678,2]
[372651212,1752733859167,-292.78179,0.00019678,2]
[372651213,1752733859176,-292.78179,0.00019678,2]
[372651214,1752733859187,-460.0,0.00019679,2]
[372651215,1752733859198,-500.0,0.00019679,2]
[372651216,1752733859207,-151.0,0.00019679,2]
[372651217,1752733859217,-151.0,0.00019679,2]
[372651218,1752733859226,-460.0,0.00019679,2]
[372651219,1752733859235,-460.0,0.00019679,2]
[372651220,1752733859244,-1737.46,0.00019679,2]
[372651221,1752733859254,-2090.97,0.00019679,2]
[372651222,1752733859264,-899.49,0.00019679,2]
[372651223,1752733859274,-2579.09,0.00019679,2]
[372651224,1752733859284,-642.73,0.00019679,2]
[372651225,1752733859293,-460.0,0.0001968,2]
[372651226,1752733859303,-460.0,0.0001968,2]
[372651227,1752733859313,-460.0,0.0001968,2]
[372651228,1752733859326,-674.33,0.0001968,2]
[372651229,1752733859336,-460.0,0.0001968,2]
[372651230,1752733859346,-460.0,0.0001968,2]
[372651231,1752733859358,-460.0,0.0001968,2]
[372651232,1752733859367,-460.0,0.0001968,2]
[372651233,1752733859377,-460.0,0.0001968,2]
[372651234,1752733859387,-188.29,0.0001968,2]
[372651235,1752733859397,-472.64279094,0.0001968,2]
[372651236,1752733859407,-460.0,0.0001968,2]
[372651237,1752733859416,-460.0,0.0001968,2]
[372651238,1752733859427,-460.0,0.0001968,2]
[372651239,1752733859437,-460.0,0.0001968,2]
[372651240,1752733859447,-460.0,0.0001968,2]
[372651241,1752733859457,-151.0,0.00019687,2]
[372651242,1752733859467,-151.0,0.00019687,2]
[372651243,1752733859476,-446.0,0.00019687,2]
[372651244,1752733859486,-151.0,0.00019699,2]
[372651245,1752733859497,-168.0,0.000197,2]
[372651246,1752733859507,-6103.66126702,0.000197,2]
[372651247,1752733859517,-36958.72435138,0.000197,2]
[372651248,1752733859527,-1141.28,0.00019721,2]
[372651249,1752733859536,-259.53571547,0.00019721,2]
[372651250,1752733859546,-500.99840015,0.00019721,2]
[372651251,1752733859555,-151.0,0.00019726,2]
[372651252,1752733859565,-151.0,0.00019726,2]
[372651253,1752733859577,-151.0,0.00019726,2]
[372651254,1752733859587,-488.759505,0.00019726,2]
[372651255,1752733859596,-488.759505,0.00019726,2]
[372651256,1752733859606,-351.592733,0.00019726,2]
[372651257,1752733859615,-351.592733,0.00019726,2]
[372651258,1752733859625,-151.0,0.00019726,2]
[372651259,1752733859635,-215.0738,0.00019736,2]
[372651260,1752733859655,-500.0,0.00019773,2]
[372651261,1752733859670,-242.04410817,0.00019773,2]
[372651262,1752733859680,-500.0,0.00019773,2]
[372651263,1752733859689,-500.0,0.00019773,2]
[372651264,1752733859699,-500.0,0.00019773,2]
[372651265,1752733859708,-158.12713293,0.00019773,2]
[372651266,1752733859718,-158.41884808,0.00019773,2]
[372651267,1752733859727,-500.0,0.00019773,2]
[372651268,1752733859738,-347.54868282,0.00019773,2]
[372651269,1752733859751,-500.0,0.00019773,2]
[372651270,1752733859761,-500.0,0.00019773,2]
[372651271,1752733859772,-500.0,0.00019773,2]
[372651272,1752733859783,-500.0,0.00019773,2]
[372651273,1752733859793,-500.0,0.00019773,2]
[372651274,1752733859802,-155.19178196,0.00019773,2]
[372651275,1752733859812,-158.12741437,0.00019773,2]
[372651276,1752733859825,-158.04118509,0.00019773,2]
[372651277,1752733859835,-500.0,0.00019773,2]
[372651278,1752733859844,-500.193092,0.00019773,2]
[372651279,1752733859854,-407.11799922,0.00019773,2]
[372651280,1752733859932,-500.0,0.00019773,2]
[372651281,1752733859942,-500.0,0.00019773,2]
[372651282,1752733859952,-500.0,0.00019773,2]
[372651283,1752733859962,-500.0,0.00019773,2]
[372651284,1752733859972,-500.0,0.00019773,2]
[372651285,1752733859982,-500.0,0.00019773,2]
[372651286,1752733859992,-182.91924372,0.00019773,2]
[372651287,1752733860002,-151.0,0.00019773,2]
[372651288,1752733860012,-151.0,0.00019773,2]
[372651289,1752733860023,-296.12937,0.00019773,2]
[372651290,1752733860032,-296.12937,0.00019773,2]
[372651291,1752733860043,-151.326957,0.00019773,2]
[372651292,1752733860053,-151.326957,0.00019773,2]
[372651293,1752733860064,-151.0,0.00019773,2]
[372651294,1752733860077,-1680.0,0.00019773,2]
[372651295,1752733860086,-460.0,0.00019775,2]
[372651296,1752733860096,-460.0,0.00019775,2]
[372651297,1752733860106,-460.0,0.00019775,2]
[372651298,1752733860116,-4140.04,0.00019775,2]
[372651299,1752733860126,-219.032396,0.00019775,2]
[372651300,1752733860136,-932.79,0.00019775,2]
[372651301,1752733860146,-219.032396,0.00019775,2]
[372651302,1752733860156,-540.39,0.00019775,2]
[372651303,1752733860166,-561.69027837,0.00019775,2]
[372651304,1752733860176,-2892.45,0.00019775,2]
[372651305,1752733860186,-460.0,0.00019775,2]
[372651306,1752733860195,-2151.51,0.00019775,2]
[372651307,1752733860205,-727.28,0.00019775,2]
[372651308,1752733860215,-460.0,0.00019776,2]
[372651309,1752733860224,-460.0,0.00019776,2]
[372651310,1752733860233,-460.0,0.00019776,2]
[372651311,1752733860244,-460.0,0.00019777,2]
[372651312,1752733860253,-460.0,0.00019777,2]
[372651313,1752733860263,-534.92980233,0.00019777,2]
[372651314,1752733860272,-460.0,0.00019777,2]
[372651315,1752733860282,-631.04,0.00019777,2]
[372651316,1752733860291,-460.0,0.00019777,2]
[372651317,1752733860301,-460.0,0.00019777,2]
[372651318,1752733860310,-1599.14,0.00019777,2]
[372651319,1752733860322,-460.0,0.00019777,2]
[372651320,1752733860332,-460.0,0.00019777,2]
[372651321,1752733860342,-613.34,0.00019777,2]
[372651322,1752733860352,-619.55,0.00019777,2]
[372651323,1752733860363,-1158.0,0.00019777,2]
[372651324,1752733860373,-460.0,0.00019777,2]
[372651325,1752733860383,-460.0,0.00019777,2]
[372651326,1752733860392,-693.25,0.00019777,2]
[372651327,1752733860402,-460.0,0.00019777,2]
[372651328,1752733860412,-460.0,0.00019777,2]
[372651329,1752733860422,-1194.0,0.00019779,2]
[372651330,1752733860432,-1100.0,0.00019779,2]
[372651331,1752733860441,-443.0,0.00019779,2]
[372651332,1752733860451,-200.0,0.00019779,2]
[372651333,1752733860460,-460.0,0.00019779,2]
[372651334,1752733860470,-460.0,0.00019779,2]
[372651335,1752733860479,-460.0,0.00019779,2]
[372651336,1752733860489,-460.0,0.00019779,2]
[372651337,1752733860498,-151.0,0.00019779,2]
[372651338,1752733860509,-151.0,0.00019779,2]
[372651339,1752733860519,-460.0,0.00019779,2]
[372651340,1752733860529,-847.53,0.00019779,2]
[372651341,1752733860539,-692.39,0.00019779,2]
[372651342,1752733860549,-153.73076384,0.00019779,2]
[372651343,1752733860561,-460.0,0.00019779,2]
[372651344,1752733860573,-546.11,0.00019779,2]
[372651345,1752733860583,-460.0,0.00019779,2]
[372651346,1752733860592,-3583.74,0.00019779,2]
[372651347,1752733860602,-336.89914039,0.00019779,2]
[372651348,1752733860612,-175386.82597777,0.0001978,7]
[372651349,1752733860621,-151.0,0.0001978,2]
[372651350,1752733860631,-172.119606,0.0001978,2]
[372651351,1752733860641,-151.0,0.0001978,2]
[372651352,1752733860650,-151.606592,0.0001978,2]
[372651353,1752733860660,-258.84285,0.0001978,2]
[372651354,1752733860669,-154.384347,0.0001978,2]
[372651355,1752733860679,-166.465663,0.0001978,2]
[372651356,1752733860689,-166.465663,0.0001978,2]
[372651357,1752733860698,-151.0,0.0001978,2]
[372651358,1752733860708,-151.0,0.0001978,2]
[372651359,1752733860718,-151.0,0.0001978,2]
[372651360,1752733860727,-151.0,0.0001978,2]
[372651361,1752733860737,-151.0,0.0001978,2]
[372651362,1752733860750,-488.759505,0.0001978,2]
[372651363,1752733860760,-488.759505,0.0001978,2]
[372651364,1752733860769,-151.0,0.0001978,2]
[372651365,1752733860779,-151.0,0.0001978,2]
[372651366,1752733860790,-351.592733,0.0001978,2]
[372651367,1752733860799,-351.592733,0.0001978,2]
[372651368,1752733860809,-151.0,0.0001978,2]
[372651369,1752733860818,-424.07649,0.0001978,2]
[372651370,1752733860830,-424.07649,0.0001978,2]
[372651371,1752733860840,-151.0,0.0001978,2]
[372651372,1752733860849,-296.12937,0.0001978,2]
[372651373,1752733860858,-296.12937,0.0001978,2]
[372651374,1752733860867,-151.0,0.0001978,2]
[372651375,1752733860877,-151.0,0.0001978,2]
[372651376,1752733860887,-298.687031,0.0001978,2]
[372651377,1752733860896,-298.687031,0.0001978,2]
[372651378,1752733860905,-151.326957,0.0001978,2]
[372651379,1752733860915,-151.326957,0.0001978,2]
[372651380,1752733860925,-151.0,0.0001978,2]
[372651381,1752733860934,-164.267142,0.0001978,2]
[372651382,1752733860943,-292.78179,0.0001978,2]
[372651383,1752733860952,-292.78179,0.0001978,2]
[372651384,1752733860961,-151.0,0.0001978,2]
[372651385,1752733860971,-460.0,0.0001978,2]
[372651386,1752733860980,-151.0,0.0001978,2]
[372651387,1752733860989,-12607.95677342,0.0001978,7]
[372651388,1752733860998,-151.0,0.0001978,2]
[372651389,1752733861008,-214.44804168,0.0001978,7]
[372651390,1752733861017,-219.032396,0.0001978,2]
[372651391,1752733861026,-219.032396,0.0001978,2]
[372651392,1752733861035,-151.0,0.0001978,2]
[372651393,1752733861045,-476.16111942,0.0001978,7]
[372651394,1752733861055,-151.0,0.00019781,2]
[372651395,1752733861064,-151.0,0.00019781,2]
[372651396,1752733861075,-151.0,0.00019781,2]
[372651397,1752733861155,-151.0,0.00019781,2]
[372651398,1752733861165,-151.0,0.00019781,2]
[372651399,1752733861175,-151.0,0.00019781,2]
[372651400,1752733861184,-151.0,0.00019781,2]
[372651401,1752733861194,-151.0,0.00019781,2]
[372651402,1752733861203,-151.0,0.00019781,2]
[372651403,1752733861213,-488.759505,0.00019781,2]
[372651404,1752733861223,-488.759505,0.00019781,2]
[372651405,1752733861233,-151.0,0.00019781,2]
[372651406,1752733861242,-189.655599,0.00019781,2]
[372651407,1752733861253,-351.592733,0.00019781,2]
[372651408,1752733861262,-351.592733,0.00019781,2]
[372651409,1752733861272,-151.0,0.00019781,2]
[372651410,1752733861281,-424.07649,0.00019781,2]
[372651411,1752733861291,-424.07649,0.00019781,2]
[372651412,1752733861301,-151.0,0.00019781,2]
[372651413,1752733861311,-296.12937,0.00019781,2]
[372651414,1752733861322,-296.12937,0.00019781,2]
[372651415,1752733861331,-151.0,0.00019781,2]
[372651416,1752733861341,-151.0,0.00019781,2]
[372651417,1752733861350,-298.687031,0.00019781,2]
[372651418,1752733861360,-298.687031,0.00019781,2]
[372651419,1752733861369,-151.0,0.00019781,2]
[372651420,1752733861379,-292.78179,0.00019781,2]
[372651421,1752733861389,-292.78179,0.00019781,2]
[372651422,1752733861398,-151.0,0.00019781,2]
[372651423,1752733861408,-151.0,0.00019791,2]
[372651424,1752733861417,-151.0,0.00019796,2]
[372651425,1752733861427,-179.9820018,0.00019797,2]
[372651426,1752733861436,-1767.66365461,0.000198,2]
[372651427,1752733861446,-597699.67978142,0.000198,2]
[372651428,1752733861456,-179.083867,0.000198,2]
[372651429,1752733861466,-179.083867,0.000198,2]
[372651430,1752733861475,-151.0,0.000198,2]
[372651431,1752733861485,-151.0,0.000198,2]
[372651432,1752733861494,-151.0,0.000198,2]
[372651433,1752733861504,-151.0,0.000198,2]
[372651434,1752733861513,-151.0,0.000198,2]
[372651435,1752733861522,-151.0,0.000198,2]
[372651436,1752733861532,-151.916457,0.000198,2]
[372651437,1752733861542,-151.0,0.000198,2]
[372651438,1752733861551,-151.0,0.000198,2]
[372651439,1752733861560,-174.81943,0.000198,2]
[372651440,1752733861573,-151.0,0.000198,2]
[372651441,1752733861585,-151.0,0.000198,2]
[372651442,1752733861595,-488.759505,0.000198,2]
[372651443,1752733861604,-488.759505,0.000198,2]
[372651444,1752733861614,-151.0,0.000198,2]
[372651445,1752733861624,-351.592733,0.000198,2]
[372651446,1752733861634,-351.592733,0.000198,2]
[372651447,1752733861644,-151.0,0.000198,2]
[372651448,1752733861653,-424.07649,0.000198,2]
[372651449,1752733861662,-424.07649,0.000198,2]
[372651450,1752733861672,-151.0,0.000198,2]
[372651451,1752733861681,-296.12937,0.000198,2]
[372651452,1752733861690,-296.12937,0.000198,2]
[372651453,1752733861700,-151.0,0.000198,2]
[372651454,1752733861709,-151.0,0.000198,2]
[372651455,1752733861719,-298.687031,0.000198,2]
[372651456,1752733861728,-298.687031,0.000198,2]
[372651457,1752733861739,-151.326957,0.000198,2]
[372651458,1752733861751,-151.326961,0.000198,2]
[372651459,1752733861760,-151.0,0.000198,2]
[372651460,1752733861770,-292.78179,0.000198,2]
[372651461,1752733861780,-292.78179,0.000198,2]
[372651462,1752733861789,-151.0,0.000198,2]
[372651463,1752733861799,-151.0,0.000198,2]
[372651464,1752733861809,-151.0,0.000198,2]
[372651465,1752733861821,-219.032396,0.000198,2]
[372651466,1752733861833,-219.032398,0.000198,2]
[372651467,1752733861843,-446.0,0.00019809,2]
[372651468,1752733861853,-2000.0,0.00019816,2]
[372651469,1752733861862,-454.50000455,0.00019845,4]
[372651470,1752733861872,-900.0,0.00019868,2]
[372651471,1752733861881,-260.0,0.00019884,2]
[372651472,1752733861890,-168.0,0.00019894,2]
[372651473,1752733861900,-14022.27863163,0.000199,2]
[372651474,1752733861910,-460.0,0.0001995,2]
[372651475,1752733861920,-444.56,0.0001995,2]
[372651476,1752733861929,-460.0,0.0001995,2]
[372651477,1752733861939,-460.0,0.0001995,2]
[372651478,1752733861948,-486.72,0.0001995,2]
[372651479,1752733861957,-400.0,0.0001995,2]
[372651480,1752733861967,-530.92,0.0001995,2]
[372651481,1752733861976,-587.58,0.0001995,2]
[372651482,1752733861986,-460.0,0.0001995,2]
[372651483,1752733861995,-598.69,0.0001995,2]
[372651484,1752733862005,-672.11,0.0001995,2]
[372651485,1752733862014,-460.0,0.0001995,2]
[372651486,1752733862024,-460.0,0.0001995,2]
[372651487,1752733862033,-460.0,0.0001995,2]
[372651488,1752733862043,-460.0,0.0001995,2]
[372651489,1752733862052,-460.0,0.0001995,2]
[372651490,1752733862062,-5674.72,0.0001995,2]
[372651491,1752733862073,-460.0,0.0001995,2]
[372651492,1752733862093,-460.0,0.0001995,2]
[372651493,1752733862104,-460.0,0.0001995,2]
[372651494,1752733862114,-460.0,0.0001995,2]
[372651495,1752733862124,-460.0,0.0001995,2]
[372651496,1752733862134,-460.0,0.0001995,2]
[372651497,1752733862144,-460.0,0.0001995,2]
[372651498,1752733862154,-2305.95,0.0001995,2]
[372651499,1752733862163,-4193.99,0.0001995,2]
[372651500,1752733862173,-710.08,0.0001995,2]
[372651501,1752733862183,-460.0,0.0001995,2]
[372651502,1752733862193,-460.0,0.0001995,2]
[372651503,1752733862204,-460.0,0.0001995,2]
[372651505,1752733862313,-460.0,0.0001995,2]
[372651506,1752733862334,-1286.69,0.0001995,2]
[372651507,1752733862345,-2289.29,0.0001995,2]
[372651508,1752733862355,-460.0,0.0001995,2]
[372651509,1752733862366,-220.39088,0.00019952,2]
[372651510,1752733862375,-500.0,0.00019953,2]
[372651511,1752733862385,-460.0,0.00019953,2]
[372651512,1752733862395,-460.0,0.00019953,2]
[372651513,1752733862405,-1737.46,0.00019953,2]
[372651514,1752733862414,-2090.97,0.00019953,2]
[372651515,1752733862424,-899.49,0.00019953,2]
[372651516,1752733862435,-2579.09,0.00019953,2]
[372651517,1752733862444,-642.73,0.00019953,2]
[372651518,1752733862454,-460.0,0.00019954,2]
[372651519,1752733862464,-460.0,0.00019954,2]
[372651520,1752733862474,-460.0,0.00019954,2]
[372651521,1752733862483,-674.33,0.00019954,2]
[372651522,1752733862494,-460.0,0.00019954,2]
[372651523,1752733862505,-468.66538314,0.00019954,2]
[372651524,1752733862515,-460.0,0.00019954,2]
[372651525,1752733862525,-460.0,0.00019954,2]
[372651526,1752733862535,-460.0,0.00019954,2]
[372651527,1752733862545,-460.0,0.00019954,2]
[372651528,1752733862555,-571.16357736,0.00019973,2]
[372651529,1752733862564,-500.0,0.00019973,2]
[372651530,1752733862578,-158.22056861,0.00019973,2]
[372651531,1752733862588,-500.0,0.00019973,2]
[372651532,1752733862598,-500.0,0.00019973,2]
[372651533,1752733862607,-260.14798762,0.00019973,2]
[372651534,1752733862617,-500.0,0.00019973,2]
[372651535,1752733862627,-500.0,0.00019973,2]
[372651536,1752733862636,-150.0,0.00019973,2]
[372651537,1752733862645,-151.0,0.00019977,2]
[372651538,1752733862655,-478.14306,0.00019977,2]
[372651539,1752733862664,-478.14306,0.00019977,2]
[372651540,1752733862674,-179.083867,0.00019977,2]
[372651541,1752733862687,-179.083861,0.00019977,2]
[372651542,1752733862697,-151.909562,0.00019977,2]
[372651543,1752733862707,-151.0,0.00019977,2]
[372651544,1752733862717,-151.0,0.00019977,2]
[372651545,1752733862727,-151.0,0.00019977,2]
[372651546,1752733862737,-151.0,0.00019977,2]
[372651547,1752733862749,-151.0,0.00019977,2]
[372651548,1752733862759,-205.860462,0.00019977,2]
[372651549,1752733862768,-151.0,0.00019989,2]
[372651550,1752733862778,-478.14306,0.00019989,2]
[372651551,1752733862789,-478.14306,0.00019989,2]
[372651552,1752733862799,-30019.9492221,0.00019989,2]
[372651553,1752733862809,-151.0,0.00019989,2]
[372651554,1752733862820,-151.0,0.00019989,2]
[372651555,1752733862845,-151.0,0.00019989,2]
[372651556,1752733862864,-151.0,0.00019989,2]
[372651557,1752733862885,-151.0,0.00019989,2]
[372651558,1752733862906,-151.0,0.00019989,2]
[372651559,1752733862927,-151.0,0.00019989,2]
[372651560,1752733862945,-255.46394,0.00019989,2]
[372651561,1752733862965,-151.0,0.00019989,2]
[372651562,1752733862981,-156.64718,0.00019989,2]
[372651563,1752733863000,-151.0,0.00019989,2]
[372651564,1752733863019,-151.0,0.00019989,2]
[372651565,1752733863040,-488.759505,0.00019989,2]
[372651566,1752733863052,-488.759505,0.00019989,2]
[372651567,1752733863073,-488.759505,0.00019989,2]
[372651568,1752733863088,-488.759505,0.00019989,2]
[372651569,1752733863109,-151.0,0.00019989,2]
[372651570,1752733863125,-151.0,0.00019989,2]
[372651571,1752733863143,-351.592733,0.00019989,2]
[372651572,1752733863160,-351.592733,0.00019989,2]
[372651573,1752733863176,-351.592733,0.00019989,2]
[372651574,1752733863192,-351.592733,0.00019989,2]
[372651575,1752733863207,-151.0,0.00019989,2]
[372651576,1752733863222,-292.355825,0.00019989,2]
[372651577,1752733863237,-424.07649,0.00019989,2]
[372651578,1752733863253,-424.076484,0.00019989,2]
[372651579,1752733863269,-151.0,0.00019989,2]
[372651580,1752733863284,-151.0,0.00019989,2]
[372651581,1752733863299,-296.12937,0.00019989,2]
[372651582,1752733863315,-296.12937,0.00019989,2]
[372651583,1752733863334,-296.12937,0.00019989,2]
[372651584,1752733863349,-296.129378,0.00019989,2]
[372651585,1752733863364,-151.0,0.00019989,2]
[372651586,1752733863380,-205.90158,0.00019989,2]
[372651587,1752733863395,-298.687031,0.00019989,2]
[372651588,1752733863412,-298.687031,0.00019989,2]
[372651589,1752733863427,-298.687031,0.00019989,2]
[372651590,1752733863442,-298.687022,0.00019989,2]
[372651591,1752733863458,-151.0,0.00019989,2]
[372651592,1752733863474,-151.0,0.00019989,2]